bitfinex/quotes_BTCUSD_20250414
["timestamp","ask_amount","ask_price","bid_price","bid_amount"]
[1744650611286,0.23709193,84372.0,84371.0,0.003]
[1744650611287,0.28239193,84372.0,84371.0,0.003]
[1744650611511,0.28239193,84372.0,84371.0,0.001]
[1744650612843,0.04534693,84372.0,84371.0,0.001]
[1744650613070,0.24892,84365.0,84361.0,0.237076]
[1744650613274,0.237071,84363.0,84362.0,0.12084154]
[1744650613734,0.248921,84364.0,84362.0,0.12084154]
[1744650613935,0.23707,84363.0,84362.0,0.12084154]
[1744650614537,0.011853,84364.0,84362.0,0.12084154]
[1744650614988,0.011853,84364.0,84358.0,0.237083]
[1744650614989,0.011855,84349.0,84342.0,0.011856]
[1744650615217,0.248966,84349.0,84346.0,0.588972]
[1744650615430,0.0457,84352.0,84349.0,0.248963]
[1744650615643,0.0457,84352.0,84350.0,0.35794754]
[1744650616228,0.0457,84352.0,84350.0,0.35794854]
[1744650616642,0.0457,84352.0,84350.0,0.12084154]
[1744650616849,0.0457,84352.0,84341.0,0.011856]
[1744650616850,0.011856,84344.0,84341.0,0.011856]
[1744650617018,0.011856,84345.0,84342.0,0.12084154]
[1744650617217,0.237126,84343.0,84342.0,0.12084154]
[1744650617414,0.237146,84336.0,84332.0,0.01321188]
[1744650617701,0.237144,84337.0,84335.0,0.12699634]
[1744650617905,0.248998,84338.0,84336.0,0.12084154]
[1744650618027,0.007857,84338.0,84336.0,0.12084154]
[1744650618251,0.011856,84340.0,84336.0,0.13269854]
[1744650618481,0.248991,84340.0,84337.0,0.011857]
[1744650618686,0.248991,84340.0,84338.0,0.12084154]
[1744650619319,0.248989,84341.0,84338.0,0.13269854]
[1744650619517,0.011855,84346.0,84341.0,0.237132]
[1744650619720,0.237121,84345.0,84340.0,0.011856]
[1744650619949,0.011856,84344.0,84340.0,0.011856]
[1744650620147,0.237135,84340.0,84338.0,0.36983654]
[1744650620353,0.237135,84340.0,84338.0,0.12084154]
[1744650620547,0.237135,84340.0,84335.0,0.0081548]
[1744650620548,0.237146,84336.0,84335.0,0.0061548]
[1744650620910,0.283346,84336.0,84335.0,0.0061548]
[1744650621649,0.0462,84336.0,84335.0,0.0061548]
[1744650621857,0.046,84346.0,84338.0,0.237141]
[1744650622057,0.0937,84346.0,84345.0,0.237121]
[1744650622255,0.011856,84343.0,84340.0,0.011856]
[1744650622454,0.248984,84343.0,84341.0,0.12084154]
[1744650622657,0.105555,84346.0,84342.0,0.011856]
[1744650622864,0.105555,84346.0,84344.0,0.237122]
[1744650622865,0.0937,84346.0,84344.0,0.237122]
[1744650623289,0.011854,84354.0,84349.0,0.011855]
[1744650623457,0.237093,84355.0,84349.0,0.011855]
[1744650623681,0.011854,84354.0,84351.0,0.237104]
[1744650624083,0.0485,84357.0,84351.0,0.35794554]
[1744650624685,0.00404612,84352.0,84351.0,0.35794554]
[1744650625484,4.612e-05,84352.0,84351.0,0.35794554]
[1744650625688,4.612e-05,84352.0,84351.0,0.37248639]
[1744650625916,0.00304612,84352.0,84351.0,0.37248639]
[1744650627107,4.612e-05,84352.0,84351.0,0.37248639]
[1744650627560,0.00104612,84352.0,84351.0,0.37248639]
[1744650627785,4.612e-05,84352.0,84351.0,0.37348639]
[1744650628005,4.612e-05,84352.0,84351.0,0.37448639]
[1744650629131,4.612e-05,84352.0,84351.0,0.12284154]
[1744650629539,4.612e-05,84352.0,84351.0,0.35994554]
[1744650629738,4.612e-05,84352.0,84351.0,0.12284154]
[1744650629943,4.612e-05,84352.0,84351.0,0.12184154]
[1744650630272,4.612e-05,84352.0,84351.0,0.12084154]
[1744650630545,0.00104612,84352.0,84351.0,0.35794554]
[1744650630775,0.00104612,84352.0,84351.0,0.12084154]
[1744650631355,0.011855,84346.0,84342.0,0.011856]
[1744650631590,0.011855,84349.0,84345.0,0.011856]
[1744650631790,0.011855,84351.0,84347.0,0.011855]
[1744650632200,0.011855,84349.0,84346.0,0.12084154]
[1744650632615,0.282112,84348.0,84346.0,0.12084154]
[1744650632824,0.237115,84347.0,84346.0,0.12084154]
[1744650633749,0.237115,84347.0,84346.0,0.12184154]
[1744650634211,0.045,84348.0,84346.0,0.35795954]
[1744650634403,0.282113,84348.0,84346.0,0.12084154]
[1744650634616,0.282113,84348.0,84346.0,0.12184154]
[1744650634829,0.045,84348.0,84346.0,0.35895954]
[1744650635178,0.238115,84347.0,84346.0,0.12184154]
[1744650635842,0.238115,84347.0,84346.0,0.12084154]
[1744650636260,0.237115,84347.0,84346.0,0.12084154]
[1744650636769,0.046,84348.0,84346.0,0.12084154]
[1744650636974,0.011857,84338.0,84333.0,0.011857]
[1744650637180,0.237143,84337.0,84336.0,0.12084154]
[1744650637812,0.011857,84338.0,84336.0,0.12084154]
[1744650638013,0.23714,84339.0,84336.0,0.12084154]
[1744650638490,0.237141,84338.0,84336.0,0.12084154]
[1744650638946,0.248996,84339.0,84336.0,0.36984454]
[1744650639144,0.248995,84339.0,84336.0,0.13269854]
[1744650639506,0.248995,84339.0,84336.0,0.13369854]
[1744650639703,0.011855,84350.0,84343.0,0.011856]
[1744650639929,0.011855,84350.0,84339.0,0.011856]
[1744650639930,0.011856,84345.0,84339.0,0.011856]
[1744650640137,0.237127,84343.0,84341.0,0.011856]
[1744650640401,0.011856,84343.0,84340.0,0.24899]
[1744650640618,0.248985,84343.0,84340.0,0.24899]
[1744650640831,0.046,84348.0,84342.0,0.237126]
[1744650641032,0.001,84348.0,84347.0,0.237115]
[1744650641201,0.001,84348.0,84347.0,0.37249739]
[1744650641423,0.001,84348.0,84347.0,0.35795654]
[1744650641651,0.001,84348.0,84347.0,0.12084154]
[1744650642004,0.001,84348.0,84347.0,0.35795654]
[1744650642488,0.24900312,84352.0,84338.0,0.011857]
[1744650642489,0.011855,84346.0,84338.0,0.011857]
[1744650642730,0.237126,84343.0,84335.0,0.0061548]
[1744650642984,0.011856,84344.0,84335.0,0.0061548]
[1744650642985,0.237146,84336.0,84335.0,0.0061548]
[1744650643911,0.237146,84336.0,84335.0,0.0081548]
[1744650644134,0.248998,84338.0,84335.0,0.0081548]
[1744650644354,0.237146,84336.0,84335.0,0.0061548]
[1744650644571,0.238146,84336.0,84335.0,0.0061548]
[1744650645477,0.238146,84336.0,84335.0,0.0081548]
[1744650645884,0.238146,84336.0,84335.0,0.0061548]
[1744650646971,0.283846,84336.0,84335.0,0.0061548]
[1744650648286,0.0467,84336.0,84335.0,0.0061548]
[1744650648484,0.001,84336.0,84335.0,0.2433038]
[1744650648696,0.001,84336.0,84335.0,0.37868619]
[1744650649292,0.001,84336.0,84335.0,0.71868619]
[1744650649527,0.011853,84363.0,84351.0,0.237104]
[1744650649737,0.060353,84366.0,84351.0,0.35794554]
[1744650649865,0.011854,84359.0,84351.0,0.35794554]
[1744650650106,0.011853,84362.0,84351.0,0.35794554]
[1744650650320,0.011854,84359.0,84351.0,0.35794554]
[1744650650530,0.248933,84360.0,84351.0,0.35794554]
[1744650650748,0.011853,84360.0,84351.0,0.35794554]
[1744650651193,0.060353,84366.0,84351.0,0.35794554]
[1744650651194,0.0485,84366.0,84351.0,0.35794554]
[1744650651388,8e-07,84372.0,84351.0,0.37248639]
[1744650651635,8e-07,84372.0,84351.0,0.38554444]
[1744650651924,0.011852,84371.0,84351.0,0.38554444]
[1744650652367,0.011852,84369.0,84351.0,0.38554444]
[1744650652612,0.00304612,84352.0,84351.0,0.38554444]
[1744650652829,4.612e-05,84352.0,84351.0,0.38554444]
[1744650653055,4.612e-05,84352.0,84351.0,0.37200359]
[1744650653272,4.612e-05,84352.0,84351.0,0.13489959]
[1744650653692,4.612e-05,84352.0,84351.0,0.37200359]
[1744650653942,4.612e-05,84352.0,84351.0,0.12184154]
[1744650654189,4.612e-05,84352.0,84351.0,0.001]
[1744650655656,0.248982,84343.0,84340.0,0.011856]
[1744650655876,0.248984,84343.0,84341.0,0.12084154]
[1744650656275,0.011856,84343.0,84341.0,0.12084154]
[1744650656974,0.248984,84343.0,84341.0,0.12084154]
[1744650657605,0.248983,84345.0,84341.0,0.13269754]
[1744650657847,0.01190112,84352.0,84346.0,0.011855]
[1744650658025,4.612e-05,84352.0,84351.0,0.237104]
[1744650658236,4.612e-05,84352.0,84351.0,0.35794554]
[1744650658422,4.612e-05,84352.0,84351.0,0.37248639]
[1744650659227,4.612e-05,84352.0,84351.0,0.71248639]
[1744650659871,4.612e-05,84352.0,84351.0,0.71548639]
[1744650660003,4.612e-05,84352.0,84351.0,0.72452633]
[1744650660221,4.612e-05,84352.0,84351.0,0.73592975]
[1744650660439,4.612e-05,84352.0,84351.0,0.73692975]
[1744650661073,4.612e-05,84352.0,84351.0,0.73592975]
[1744650661293,4.612e-05,84352.0,84351.0,0.73892975]
[1744650662207,1.2e-07,84352.0,84351.0,0.77682633]
[1744650662880,1.2e-07,84352.0,84351.0,0.82622633]
[1744650664191,1.2e-07,84352.0,84351.0,0.83462858]
[1744650664434,1.2e-07,84352.0,84351.0,1.24672858]
[1744650665060,8e-07,84372.0,84371.0,0.59158885]
[1744650665259,8e-07,84372.0,84371.0,1.33937264]
[1744650666494,8e-07,84372.0,84371.0,1.34137264]
[1744650666902,8e-07,84372.0,84371.0,1.29517264]
[1744650667179,8e-07,84372.0,84371.0,1.29317264]
[1744650667397,8e-07,84372.0,84371.0,1.29517264]
[1744650667606,4.692e-05,84372.0,84371.0,1.29517264]
[1744650668241,4.692e-05,84372.0,84371.0,1.28777039]
[1744650669399,4.692e-05,84372.0,84371.0,1.03618154]
[1744650669604,4.692e-05,84372.0,84371.0,1.27322954]
[1744650670053,4.692e-05,84372.0,84371.0,0.53694154]
[1744650670256,4.692e-05,84372.0,84371.0,0.77398954]
[1744650670465,4.692e-05,84372.0,84371.0,0.53694154]
[1744650670594,0.23709192,84372.0,84371.0,0.12484154]
[1744650670816,4.692e-05,84372.0,84371.0,0.12484154]
[1744650671174,4.692e-05,84372.0,84371.0,0.12084154]
[1744650671380,4.692e-05,84372.0,84371.0,0.12284154]
[1744650671988,4.692e-05,84372.0,84371.0,0.35988954]
[1744650672314,4.692e-05,84372.0,84371.0,0.12284154]
[1744650672524,0.23709192,84372.0,84371.0,0.12284154]
[1744650672948,0.23709192,84372.0,84371.0,0.002]
[1744650673408,0.283781,84359.0,84358.0,0.0061548]
[1744650673820,0.332681,84359.0,84358.0,0.0061548]
[1744650675098,0.0956,84359.0,84358.0,0.2432388]
[1744650675743,0.0956,84359.0,84358.0,0.0061548]
[1744650676162,0.0956,84359.0,84358.0,0.2432388]
[1744650676363,0.332681,84359.0,84358.0,0.0061548]
[1744650677858,0.332681,84359.0,84334.0,0.011857]
[1744650677859,0.248993,84340.0,84336.0,0.237144]
[1744650678070,0.237135,84340.0,84337.0,0.35798454]
[1744650678266,0.24899,84341.0,84338.0,0.237139]
[1744650678507,0.24899,84341.0,84339.0,0.12084154]
[1744650678706,0.237135,84340.0,84339.0,0.12824741]
[1744650679090,0.011856,84343.0,84339.0,0.14014953]
[1744650679292,0.237116,84347.0,84340.0,0.011856]
[1744650679500,0.2484452,84359.0,84352.0,0.011855]
[1744650679650,0.4855292,84359.0,84356.0,0.011854]
[1744650679849,0.4855292,84359.0,84358.0,0.237084]
[1744650679850,0.2484452,84359.0,84358.0,0.237084]
[1744650680057,0.2484452,84359.0,84356.0,0.011854]
[1744650680441,0.4855272,84359.0,84356.0,0.248944]
[1744650680655,0.4855272,84359.0,84353.0,0.237096]
[1744650680656,8e-07,84372.0,84369.0,0.011852]
[1744650680876,0.0481,84370.0,84369.0,0.237053]
[1744650681301,0.0471,84371.0,84370.0,0.237051]
[1744650681502,8e-07,84372.0,84371.0,0.237048]
[1744650681731,8e-07,84376.0,84375.0,0.59157785]
[1744650681957,8e-07,84376.0,84375.0,0.7198225]
[1744650682994,8e-07,84376.0,84375.0,1.1319225]
[1744650683802,0.0010008,84376.0,84375.0,1.1339225]
[1744650684226,8e-07,84376.0,84375.0,1.1319225]
[1744650684597,8e-07,84376.0,84375.0,1.1379225]
[1744650686183,0.0008446,84398.0,84385.0,0.35454085]
[1744650686423,0.0008446,84398.0,84397.0,0.71235739]
[1744650686536,0.00098304,84398.0,84397.0,0.87135739]
[1744650686738,0.00098304,84398.0,84397.0,0.8787605]
[1744650687771,0.00098304,84398.0,84397.0,0.86421965]
[1744650688051,0.00198304,84398.0,84397.0,0.86421965]
[1744650688282,0.00098304,84398.0,84397.0,0.86421965]
[1744650688519,0.00098304,84398.0,84397.0,0.86521965]
[1744650688928,0.00098304,84398.0,84397.0,0.70621965]
[1744650689129,0.00098304,84398.0,84397.0,0.70721965]
[1744650689492,0.00098304,84398.0,84397.0,0.70721661]
[1744650689689,0.00098304,84398.0,84397.0,0.70621661]
[1744650689979,0.00098304,84398.0,84397.0,0.70821661]
[1744650690153,0.00098304,84398.0,84397.0,0.47124161]
[1744650690713,0.23795504,84398.0,84397.0,0.13124161]
[1744650691039,0.23795504,84398.0,84397.0,0.003]
[1744650691643,0.00098304,84398.0,84397.0,0.239975]
[1744650691844,0.00098304,84398.0,84397.0,0.35781654]
[1744650692254,0.00098304,84398.0,84397.0,0.35881654]
[1744650692430,0.23795504,84398.0,84397.0,0.001]
[1744650692620,0.23795504,84398.0,84392.0,0.011849]
[1744650692621,0.236984,84394.0,84392.0,0.011849]
[1744650692821,0.236984,84394.0,84393.0,0.12084154]
[1744650693060,0.24883,84395.0,84393.0,0.12084154]
[1744650694194,0.24980304,84398.0,84395.0,0.23698]
[1744650694395,0.248824,84397.0,84393.0,0.12084154]
[1744650694546,0.248827,84396.0,84393.0,0.12084154]
[1744650694745,0.236982,84395.0,84393.0,0.12084154]
[1744650695571,0.248826,84396.0,84393.0,0.12084154]
[1744650695823,0.00098304,84398.0,84396.0,0.236977]
[1744650696626,0.00098304,84398.0,84396.0,0.236978]
[1744650696847,0.00098304,84398.0,84397.0,0.35781654]
[1744650697284,0.00098304,84398.0,84397.0,0.12084154]
[1744650697520,0.00098304,84398.0,84397.0,0.12824236]
[1744650698123,0.00098304,84398.0,84397.0,0.35781654]
[1744650698525,0.00098304,84398.0,84397.0,0.12084154]
[1744650698869,0.00098304,84398.0,84397.0,0.35781654]
[1744650699299,0.00098304,84398.0,84397.0,0.35881654]
[1744650699852,0.00098304,84398.0,84397.0,0.12184154]
[1744650700020,0.00098304,84398.0,84397.0,0.35881654]
[1744650700219,0.00098304,84398.0,84397.0,0.12184154]
[1744650700541,0.00098304,84398.0,84397.0,0.35881654]
[1744650702234,0.23795504,84398.0,84397.0,0.001]
[1744650703400,0.00098304,84398.0,84397.0,0.237975]
[1744650703613,0.00098304,84398.0,84397.0,0.35881654]
[1744650704358,0.00098304,84398.0,84397.0,0.36621645]
[1744650704834,0.00098304,84398.0,84397.0,0.12924145]
[1744650705214,0.00098304,84398.0,84397.0,0.36521645]
[1744650705416,0.23795504,84398.0,84397.0,0.12824145]
[1744650705997,0.23795504,84398.0,84397.0,0.00739991]
[1744650706422,0.248835,84394.0,84391.0,0.011849]
[1744650706573,0.236989,84392.0,84391.0,0.12084154]
[1744650707185,0.236989,84392.0,84391.0,0.00739991]
[1744650707717,0.248838,84392.0,84391.0,0.001]
[1744650707957,0.0921,84394.0,84393.0,0.236986]
[1744650708305,0.248826,84396.0,84393.0,0.236986]
[1744650708514,0.248826,84396.0,84393.0,0.24438591]
[1744650708700,0.248826,84396.0,84393.0,0.00739991]
[1744650709098,0.236981,84395.0,84393.0,0.00839991]
[1744650709297,0.248826,84396.0,84393.0,0.00839991]
[1744650709524,0.236983,84394.0,84393.0,0.00739991]
[1744650709735,0.248837,84393.0,84388.0,0.236999]
[1744650710099,0.248837,84393.0,84389.0,0.14009182]
[1744650710298,0.012848,84396.0,84389.0,0.14009182]
[1744650710299,0.236981,84395.0,84391.0,0.248838]
[1744650710454,0.249828,84396.0,84392.0,0.011849]
[1744650710656,0.24883,84395.0,84392.0,0.25623828]
[1744650710836,0.236985,84394.0,84392.0,0.00740128]
[1744650711036,0.236986,84393.0,84392.0,0.00740128]
[1744650711239,0.23699,84392.0,84389.0,0.36968754]
[1744650711440,0.23699,84392.0,84390.0,0.00740129]
[1744650711659,0.248835,84393.0,84390.0,0.12824283]
[1744650711868,0.248835,84393.0,84390.0,0.37708483]
[1744650712040,0.248835,84393.0,84391.0,0.00740129]
[1744650712252,0.248835,84393.0,84392.0,0.001]
[1744650712817,0.248835,84393.0,84392.0,0.00740129]
[1744650713391,0.011849,84395.0,84392.0,0.00740129]
[1744650713620,0.236983,84394.0,84393.0,0.00740129]
[1744650713991,0.248826,84396.0,84393.0,0.00740129]
[1744650714199,0.011848,84396.0,84393.0,0.00740129]
[1744650714404,0.236983,84394.0,84393.0,0.00740129]
[1744650714625,0.236983,84394.0,84392.0,0.001]
[1744650714800,0.236983,84394.0,84391.0,0.011849]
[1744650714801,0.236986,84393.0,84391.0,0.011849]
[1744650715004,0.248832,84394.0,84391.0,0.011849]
[1744650715225,0.248832,84394.0,84391.0,0.248838]
[1744650715437,0.248832,84394.0,84392.0,0.00740123]
[1744650715918,0.248832,84394.0,84393.0,0.00740123]
[1744650716153,0.236946,84408.0,84397.0,0.236975]
[1744650716370,0.011847,84405.0,84397.0,0.36521777]
[1744650716590,0.248799,84405.0,84397.0,0.36521777]
[1744650716721,0.23795504,84398.0,84397.0,0.12824277]
[1744650716920,0.00098304,84398.0,84397.0,0.12824277]
[1744650717344,0.00098304,84398.0,84397.0,0.00740123]
[1744650717547,0.23795504,84398.0,84397.0,0.00740123]
[1744650718706,0.23995504,84398.0,84397.0,0.00740123]
[1744650720145,0.00298304,84398.0,84397.0,0.00740123]
[1744650720533,0.23995504,84398.0,84397.0,0.00740123]
[1744650720863,0.00298304,84398.0,84397.0,0.24437623]
[1744650721205,0.00298304,84398.0,84397.0,0.00740123]
[1744650721406,0.23995504,84398.0,84397.0,0.00740123]
[1744650721899,0.00298304,84398.0,84397.0,0.24437623]
[1744650722109,0.00298304,84398.0,84397.0,0.36521777]
[1744650722684,0.00298304,84398.0,84397.0,0.00740123]
[1744650722885,0.28765504,84398.0,84397.0,0.00740123]
[1744650723130,0.09998304,84398.0,84397.0,0.00740123]
[1744650723637,0.00298304,84398.0,84397.0,0.00740123]
[1744650723856,0.23995504,84398.0,84397.0,0.00740123]
[1744650724063,0.237004,84387.0,84384.0,0.01185]
[1744650724257,0.237004,84387.0,84385.0,0.12084154]
[1744650724258,0.237008,84386.0,84385.0,0.12084154]
[1744650724623,0.248854,84387.0,84385.0,0.12084154]
[1744650725055,0.011852,84373.0,84361.0,0.011853]
[1744650725402,0.237031,84377.0,84373.0,0.248892]
[1744650725766,0.248882,84377.0,84373.0,0.248892]
[1744650725963,0.011851,84377.0,84374.0,0.248889]
[1744650726126,0.248862,84384.0,84380.0,0.237022]
[1744650726330,0.248876,84379.0,84376.0,0.011851]
[1744650726594,0.011851,84376.0,84373.0,0.001]
[1744650726749,0.237039,84374.0,84371.0,0.011852]
[1744650726952,0.237039,84374.0,84370.0,0.237049]
[1744650726953,0.24889,84374.0,84370.0,0.237049]
[1744650727201,0.01185,84383.0,84378.0,0.237028]
[1744650727369,0.01185,84382.0,84379.0,0.011851]
[1744650727559,0.01185,84382.0,84374.0,0.248889]
[1744650727560,0.011851,84381.0,84374.0,0.248889]
[1744650727813,0.248877,84379.0,84376.0,0.237032]
[1744650728105,0.237031,84377.0,84374.0,0.238039]
[1744650728601,0.248884,84377.0,84374.0,0.24889]
[1744650728744,0.248884,84377.0,84374.0,0.25089]
[1744650728940,0.237008,84387.0,84381.0,0.237017]
[1744650729167,0.00098304,84398.0,84394.0,0.236983]
[1744650729168,0.0459,84395.0,84394.0,0.236983]
[1744650729392,0.0459,84395.0,84391.0,0.236989]
[1744650729393,0.057749,84395.0,84391.0,0.236989]
[1744650729599,0.011849,84391.0,84387.0,0.237002]
[1744650729822,0.011849,84391.0,84389.0,0.236997]
[1744650730082,0.011849,84392.0,84386.0,0.01185]
[1744650730235,0.237,84389.0,84386.0,0.12084154]
[1744650730586,0.011849,84392.0,84389.0,0.236996]
[1744650731136,0.282883,84395.0,84388.0,0.24885]
[1744650731137,0.0459,84395.0,84390.0,0.248843]
[1744650731299,0.248833,84394.0,84390.0,0.248843]
[1744650731503,0.248842,84391.0,84387.0,0.237002]
[1744650731746,0.248842,84391.0,84388.0,0.237]
[1744650732273,0.248842,84391.0,84387.0,0.248852]
[1744650732513,0.248836,84393.0,84376.0,0.011851]
[1744650732514,0.011851,84380.0,84376.0,0.011851]
[1744650732662,0.011851,84381.0,84377.0,0.12084154]
[1744650732871,0.011851,84381.0,84379.0,0.237024]
[1744650733269,0.248861,84385.0,84382.0,0.237016]
[1744650733516,0.011849,84389.0,84384.0,0.237011]
[1744650733658,0.237006,84386.0,84384.0,0.248861]
[1744650733860,0.248856,84386.0,84380.0,0.011851]
[1744650734173,0.237011,84384.0,84380.0,0.248873]
[1744650734369,0.237017,84382.0,84380.0,0.248873]
[1744650734599,0.01185,84383.0,84377.0,0.12084154]
[1744650734947,0.237023,84380.0,84377.0,0.12084154]
[1744650735133,0.011849,84390.0,84386.0,0.01185]
[1744650735341,0.01185,84385.0,84377.0,0.12084154]
[1744650735482,0.011851,84380.0,84378.0,0.237028]
[1744650735678,0.237025,84379.0,84378.0,0.12084154]
[1744650735973,0.011849,84390.0,84386.0,0.237003]
[1744650736144,0.237005,84387.0,84383.0,0.01185]
[1744650736370,0.01185,84386.0,84383.0,0.248862]
[1744650736598,0.01185,84386.0,84384.0,0.23701]
[1744650736771,0.248855,84387.0,84384.0,0.01185]
[1744650736994,0.011847,84405.0,84392.0,0.011849]
[1744650737167,0.0481,84404.0,84395.0,0.248829]
[1744650737403,0.011848,84400.0,84396.0,0.236978]
[1744650737614,0.012692,84399.0,84395.0,0.248829]
[1744650737820,0.000844,84399.0,84397.0,0.236975]
[1744650738192,0.000844,84399.0,84397.0,0.35781654]
[1744650739099,0.00298304,84398.0,84397.0,0.36521701]
[1744650739329,0.00098304,84398.0,84397.0,0.36521701]
[1744650739562,0.00398304,84398.0,84397.0,0.36521701]
[1744650747822,0.00398304,84398.0,84397.0,0.71975786]
[1744650748026,4e-08,84399.0,84398.0,0.59151285]
[1744650748227,4e-08,84399.0,84398.0,0.71235439]
[1744650748431,0.00046097,84399.0,84398.0,0.71975486]
[1744650748639,1.7e-07,84406.0,84398.0,1.13185486]
[1744650748815,1.7e-07,84410.0,84409.0,0.59148185]
[1744650749017,1.7e-07,84410.0,84409.0,0.87084339]
[1744650749423,1.7e-07,84410.0,84409.0,0.87824386]
[1744650750635,1.7e-07,84410.0,84409.0,0.88024386]
[1744650750831,1.7e-07,84410.0,84409.0,0.88908009]
[1744650751239,1.7e-07,84410.0,84409.0,0.89108009]
[1744650752015,1.7e-07,84410.0,84409.0,0.73056009]
[1744650752196,1.7e-07,84410.0,84409.0,0.89008009]
[1744650752649,1.7e-07,84410.0,84409.0,0.89208009]
[1744650752852,1.7e-07,84410.0,84409.0,1.30418009]
[1744650756243,1.7e-07,84410.0,84409.0,1.29534386]
[1744650764254,1.7e-07,84410.0,84409.0,1.29530386]
[1744650772731,1.7e-07,84410.0,84409.0,1.34480386]
[1744650772988,1.7e-07,84410.0,84409.0,1.34280386]
[1744650773461,1.7e-07,84410.0,84409.0,1.34180386]
[1744650773692,1.7e-07,84410.0,84409.0,1.34480386]
[1744650773940,1.7e-07,84410.0,84409.0,1.34280386]
[1744650774408,1.7e-07,84410.0,84409.0,1.34680386]
[1744650775088,1.7e-07,84410.0,84409.0,1.29730386]
[1744650775781,1.7e-07,84410.0,84409.0,1.13882386]
[1744650776003,1.7e-07,84410.0,84409.0,1.29710386]
[1744650776661,0.0004219,84432.0,84431.0,0.236879]
[1744650776858,0.00056021,84432.0,84431.0,0.35772054]
[1744650777489,0.00056021,84432.0,84431.0,0.36512101]
[1744650777683,0.00056021,84432.0,84431.0,0.37751235]
[1744650780888,0.00056021,84432.0,84431.0,0.12824201]
[1744650781174,0.00056021,84432.0,84431.0,0.36512101]
[1744650781303,0.00056021,84432.0,84431.0,0.12824201]
[1744650781506,0.23743721,84432.0,84431.0,0.12824201]
[1744650781705,0.23743721,84432.0,84431.0,0.00740047]
[1744650781706,0.28593721,84432.0,84431.0,0.00740047]
[1744650781938,0.33153721,84432.0,84431.0,0.00740047]
[1744650782945,0.286016,84418.0,84416.0,0.011846]
[1744650783304,0.286016,84418.0,84403.0,0.00876212]
[1744650783305,0.011849,84394.0,84387.0,0.01185]
[1744650783456,0.011848,84396.0,84389.0,0.011849]
[1744650783668,0.281992,84391.0,84390.0,0.12084154]
[1744650784295,0.281992,84391.0,84390.0,0.12824289]
[1744650784680,0.281992,84391.0,84390.0,0.12870382]
[1744650784983,0.281992,84391.0,84390.0,0.00046093]
[1744650786709,0.045,84391.0,84390.0,0.35829647]
[1744650787317,0.045,84391.0,84390.0,0.12130247]
[1744650787513,0.281992,84391.0,84390.0,0.00046093]
[1744650789455,0.282992,84391.0,84390.0,0.00046093]
[1744650790656,0.331292,84391.0,84390.0,0.00046093]
[1744650791266,0.284334,84376.0,84375.0,0.0008432]
[1744650791492,0.284334,84376.0,84375.0,0.00098164]
[1744650792165,0.329934,84376.0,84375.0,0.00098164]
[1744650792362,0.329934,84376.0,84352.0,0.0008434]
[1744650792363,0.286287,84357.0,84352.0,0.0008434]
[1744650792588,0.334387,84357.0,84352.0,0.0008434]
[1744650792786,0.237118,84346.0,84345.0,0.0008434]
[1744650793330,0.283215,84347.0,84345.0,0.0008434]
[1744650793332,0.0461,84347.0,84345.0,0.2379624]
[1744650793574,0.0461,84347.0,84346.0,0.12084154]
[1744650793776,0.0481,84352.0,84351.0,0.237104]
[1744650794114,0.0481,84352.0,84349.0,0.011855]
[1744650794115,0.297057,84352.0,84348.0,0.011855]
[1744650794322,0.011855,84351.0,84346.0,0.13269654]
[1744650794497,0.011855,84350.0,84346.0,0.36981154]
[1744650794696,0.0481,84352.0,84349.0,0.011855]
[1744650794928,0.237065,84365.0,84349.0,0.011855]
[1744650794929,0.0505,84357.0,84356.0,0.23709]
[1744650795134,0.0452,84371.0,84365.0,0.011853]
[1744650795344,0.0452,84371.0,84366.0,0.12084154]
[1744650795345,0.237061,84367.0,84366.0,0.12084154]
[1744650795542,0.011853,84360.0,84356.0,0.011854]
[1744650795757,0.248928,84362.0,84357.0,0.13269554]
[1744650795957,0.011853,84363.0,84360.0,0.011853]
[1744650796163,0.011854,84356.0,84351.0,0.248957]
[1744650796371,0.011854,84357.0,84354.0,0.011854]
[1744650796576,0.24892,84365.0,84360.0,0.237077]
[1744650796779,0.248924,84363.0,84359.0,0.248934]
[1744650796985,0.249927,84362.0,84358.0,0.011854]
[1744650797219,0.057052,84371.0,84364.0,0.011853]
[1744650797396,0.011853,84364.0,84361.0,0.011853]
[1744650797541,0.237081,84360.0,84357.0,0.13269554]
[1744650797738,0.011853,84364.0,84361.0,0.237075]
[1744650797969,0.011853,84364.0,84357.0,0.12084154]
[1744650797970,0.011853,84362.0,84357.0,0.12084154]
[1744650798189,0.011853,84364.0,84290.0,0.000844]
[1744650798190,0.36940038,84380.0,84312.0,0.711635]
[1744650798387,0.237116,84347.0,84345.0,0.01327367]
[1744650798587,0.248971,84348.0,84345.0,0.0008434]
[1744650798763,0.248971,84348.0,84346.0,0.12084154]
[1744650799161,0.011855,84350.0,84346.0,0.12084154]
[1744650799408,0.237114,84348.0,84346.0,0.12084154]
[1744650799562,0.248965,84349.0,84346.0,0.12084154]
[1744650799950,0.237115,84347.0,84346.0,0.002]
[1744650800346,0.237115,84347.0,84345.0,0.0008434]
[1744650800547,0.0467,84346.0,84345.0,0.0008434]
[1744650802793,0.0487,84346.0,84345.0,0.0008434]
[1744650803161,0.20894,84346.0,84345.0,0.0008434]
[1744650804195,0.21768786,84346.0,84345.0,0.0008434]
[1744650804427,0.20894,84346.0,84345.0,0.0008434]
[1744650806538,0.16224,84346.0,84345.0,0.0008434]
[1744650806761,0.004,84346.0,84345.0,0.0008434]
[1744650807911,0.002,84346.0,84345.0,0.12168494]
[1744650808119,0.003,84346.0,84345.0,0.12168494]
[1744650808367,0.238118,84346.0,84345.0,0.12168494]
[1744650808606,0.239118,84346.0,84345.0,0.0008434]
[1744650808826,0.002,84346.0,84345.0,0.35880594]
[1744650809023,0.003,84346.0,84345.0,0.35880594]
[1744650810778,0.240118,84346.0,84345.0,0.0008434]
[1744650813115,0.337418,84346.0,84345.0,0.0008434]
[1744650813540,0.337418,84346.0,84343.0,4e-07]
[1744650813541,0.577124,84344.0,84343.0,4e-07]
[1744650813888,0.237129,84342.0,84341.0,2e-07]
[1744650814038,0.40347054,84342.0,84341.0,2e-07]
[1744650815125,0.40747054,84342.0,84341.0,2e-07]
[1744650815333,0.288629,84342.0,84341.0,2e-07]
[1744650816194,0.286629,84342.0,84341.0,2e-07]
[1744650817210,0.282629,84342.0,84341.0,2e-07]